bitfinex-derivatives/quotes_SOLF0:USTF0_20250228
["timestamp","ask_amount","ask_price","bid_price","bid_amount"]
[1740702456457,0.04864996,137.28,137.27,7.2913]
[1740702456660,0.04864996,137.28,137.25,0.04059129]
[1740702457755,7.2916,137.27,137.25,0.04059129]
[1740702457958,0.04864996,137.28,137.25,0.04059129]
[1740702458458,7.2915,137.27,137.25,0.04059129]
[1740702459661,7.33964996,137.28,137.25,0.04059129]
[1740702461958,0.04864996,137.28,137.25,0.04059129]
[1740702462160,7.2918,137.26,137.25,0.04059129]
[1740702466871,0.04864996,137.28,137.25,0.04059129]
[1740702467163,0.04864996,137.28,137.27,7.2913]
[1740702467558,0.04864996,137.28,137.25,0.04059129]
[1740702468761,7.33944996,137.28,137.25,0.04059129]
[1740702468964,0.04864996,137.28,137.25,0.04059129]
[1740702469162,7.2918,137.26,137.25,0.04059129]
[1740702470971,0.04864996,137.28,137.25,0.04059129]
[1740702471174,7.2915,137.27,137.25,0.04059129]
[1740702472076,7.33954996,137.28,137.25,0.04059129]
[1740702472775,0.04864996,137.28,137.25,0.04059129]
[1740702473778,7.2916,137.27,137.25,0.04059129]
[1740702474171,0.04864996,137.28,137.25,0.04059129]
[1740702474374,7.2918,137.26,137.25,0.04059129]
[1740702474775,0.04864996,137.28,137.25,0.04059129]
[1740702474973,7.2914,137.27,137.25,0.04059129]
[1740702475178,0.04864996,137.28,137.25,0.04059129]
[1740702476071,0.04864996,137.28,137.26,7.2915]
[1740702477080,0.04864996,137.28,137.25,0.04059129]
[1740702477271,1.85,137.35,137.25,0.04059129]
[1740702477476,1.85,137.35,137.2,1.33964729]
[1740702477671,1.85,137.35,137.28,7.2905]
[1740702477877,7.2889,137.32,137.28,7.2905]
[1740702478375,1.85,137.35,137.23,11.46]
[1740702478575,0.05057046,137.31,137.29,0.04945683]
[1740702479280,7.2897,137.3,137.29,0.04945683]
[1740702480480,7.33997046,137.31,137.29,0.04945683]
[1740702482280,7.2897,137.3,137.29,0.04945683]
[1740702489885,0.05057046,137.31,137.29,0.04945683]
[1740702490477,0.05057046,137.31,137.29,7.33945683]
[1740702490682,0.05057046,137.31,137.29,0.04945683]
[1740702491782,0.05057046,137.31,137.3,7.2897]
[1740702492176,0.05057046,137.31,137.29,0.04945683]
[1740702492177,44.43265024,137.37,137.29,0.04945683]
[1740702492386,7.2872,137.35,137.31,7.2887]
[1740702493283,0.05549994,137.34,137.32,0.05543428]
[1740702493781,0.05549994,137.34,137.32,7.34403428]
[1740702494783,0.05549994,137.34,137.32,0.05543428]
[1740702496279,7.2881,137.33,137.32,0.05543428]
[1740702498496,0.05549994,137.34,137.25,22.56586476]
[1740702498690,7.2899,137.3,137.25,22.56586476]
[1740702498893,7.2899,137.3,137.25,3.8362]
[1740702499092,7.2906,137.29,137.25,1.8819]
[1740702499295,21.83,137.35,137.22,211.72966476]
[1740702499491,21.83,137.35,137.24,9.1602]
[1740702499692,7.2912,137.28,137.24,9.1602]
[1740702500096,0.0552282,137.27,137.25,0.04953546]
[1740702501898,7.2918,137.26,137.25,0.04953546]
[1740702502394,0.0552282,137.27,137.25,0.04953546]
[1740702503398,7.3469282,137.27,137.25,0.04953546]
[1740702503798,0.0552282,137.27,137.25,0.04953546]
[1740702504694,0.0552282,137.27,137.25,7.34173546]
[1740702506090,0.0552282,137.27,137.25,0.04953546]
[1740702506893,0.0552282,137.27,137.25,7.34183546]
[1740702507601,0.0552282,137.27,137.25,0.04953546]
[1740702507902,0.0552282,137.27,137.26,7.2918]
[1740702508107,7.2893,137.31,137.25,0.04953546]
[1740702508294,7.2893,137.31,137.27,7.291]
[1740702509102,3.7855,137.35,137.25,0.04953546]
[1740702509304,0.04761798,137.3,137.22,18.72966476]
[1740702509492,0.04761798,137.3,137.29,0.05591486]
[1740702509698,0.04761798,137.3,137.23,4.0584]
[1740702509898,0.04761798,137.3,137.28,0.0558261]
[1740702510098,0.04761798,137.3,137.23,4.0584]
[1740702510303,0.04761798,137.3,137.28,0.04821542]
[1740702510508,0.04761798,137.3,137.23,4.0584]
[1740702510700,0.04761798,137.3,137.29,7.2902]
[1740702512301,0.04761798,137.3,137.28,0.05011305]
[1740702513407,7.33751798,137.3,137.28,0.05011305]
[1740702513905,7.2902,137.29,137.28,0.05011305]
[1740702514500,7.2917,137.27,137.23,7.2933]
[1740702514703,21.88,137.31,137.21,18.72966476]
[1740702514905,1.8693,137.3,137.21,18.72966476]
[1740702515205,1.8693,137.3,137.23,7.293]
[1740702515607,7.2916,137.27,137.25,0.05231022]
[1740702515807,0.04823607,137.28,137.25,0.05231022]
[1740702516407,0.04823607,137.28,137.26,7.2915]
[1740702519409,7.33923607,137.28,137.25,7.34441022]
[1740702519808,7.33923607,137.28,137.25,0.05231022]
[1740702522711,0.04823607,137.28,137.25,7.34441022]
[1740702523213,0.04823607,137.28,137.25,0.05231022]
[1740702523412,0.04823607,137.28,137.26,7.2918]
[1740702525809,7.33953607,137.28,137.25,0.05231022]
[1740702526009,0.04823607,137.28,137.25,0.05231022]
[1740702526413,7.2918,137.26,137.25,0.05231022]
[1740702538826,7.2952,137.2,137.17,7.2964]
[1740702539025,7.2952,137.2,137.14,18.72966476]
[1740702539218,1.9355,137.25,137.18,7.2959]
[1740702539424,7.2947,137.21,137.18,7.2959]
[1740702539622,1.9355,137.25,137.13,2.044]
[1740702540122,7.34740858,137.2,137.18,0.03718235]
[1740702540321,7.2953,137.2,137.18,0.03718235]
[1740702540518,7.34159726,137.2,137.18,0.03718235]
[1740702541423,0.04629726,137.2,137.18,0.03718235]
[1740702542921,7.34159726,137.2,137.18,0.03718235]
[1740702543527,0.04629726,137.2,137.18,0.03718235]
[1740702544215,0.04629726,137.2,137.19,7.2955]
[1740702544415,2.0102,137.27,137.18,0.03718235]
[1740702544620,2.0102,137.27,137.13,20.77366476]
[1740702545125,2.0102,137.27,137.2,7.2946]
[1740702545327,2.0102,137.27,137.13,20.77366476]
[1740702545524,0.05370959,137.25,137.22,0.05588831]
[1740702545723,2.0102,137.27,137.13,20.77366476]
[1740702545924,2.0102,137.27,137.22,0.04655881]
[1740702545925,0.05096833,137.25,137.22,0.04655881]
[1740702546224,7.2938,137.23,137.22,0.04630956]
[1740702551130,7.2951,137.2,137.16,7.2969]
[1740702551927,21.88,137.25,137.13,2.044]
[1740702552229,43.78,137.25,137.13,2.044]
[1740702552425,0.05335767,137.2,137.18,0.03717005]
[1740702552626,7.2955,137.19,137.18,0.03717005]
[1740702556133,11.2461,137.19,137.18,0.03717005]
[1740702559641,11.2461,137.19,137.18,7.005e-05]
[1740702560241,13.2581,137.19,137.18,7.005e-05]
[1740702563243,35.1381,137.19,137.18,7.005e-05]
[1740702563647,46.5981,137.19,137.18,7.005e-05]
[1740702575949,90.3581,137.19,137.18,7.005e-05]
[1740702576250,91.6755767,137.19,137.18,7.005e-05]
[1740702576450,91.67543951,137.19,137.18,7.005e-05]
[1740702577149,36.45543951,137.19,137.18,7.005e-05]
[1740702577350,35.1381,137.19,137.18,7.005e-05]
[1740702580853,56.9981,137.19,137.18,7.005e-05]
[1740702581349,35.1381,137.19,137.18,7.005e-05]
[1740702582956,57.0381,137.19,137.18,7.005e-05]
[1740702583357,78.8981,137.19,137.18,7.005e-05]
[1740702583958,271.21511751,137.19,137.18,7.005e-05]
[1740702584859,269.8981,137.19,137.18,7.005e-05]
[1740702585559,271.21509221,137.19,137.18,7.005e-05]
[1740702586059,350.79692643,137.19,137.18,7.005e-05]
[1740702588162,159.79692643,137.19,137.18,7.005e-05]
[1740702589057,311.6756513,137.19,137.18,7.005e-05]
[1740702589264,312.99227541,137.19,137.18,7.005e-05]
[1740702589564,311.6756513,137.19,137.18,7.005e-05]
[1740702589762,312.99229048,137.19,137.18,7.005e-05]
[1740702590157,7.303,137.05,137.04,1.9517]
[1740702592758,7.3035,137.04,137.03,1.9833]
[1740702593067,0.05022592,137.06,137.02,1.9434]
[1740702593768,7.304,137.03,137.02,1.9434]
[1740702595467,7.304,137.03,137.0,3.9092]
[1740702595666,7.3049,137.01,137.0,3.9092]
[1740702599770,7.3062,136.99,136.97,2.0481]
[1740702600169,7.35697903,136.99,136.97,2.0481]
[1740702600868,0.05077903,136.99,136.93,7.3092]
[1740702601064,0.05077903,136.99,136.86,57.30313927]
[1740702601267,7.3081,136.96,136.88,5.9405]
[1740702601562,0.04674788,136.94,136.93,7.3093]
[1740702603167,7.3043,137.03,136.93,21.9]
[1740702603368,11.48,137.11,136.92,11.48]
[1740702603563,11.48,137.11,136.92,12.94070698]
[1740702603772,7.3044,137.03,136.92,12.94070698]
[1740702603969,11.94979567,137.1,136.92,12.94070698]
[1740702604169,21.88,137.09,136.99,7.3057]
[1740702604374,7.3033,137.05,136.92,12.94070698]
[1740702604573,7.35573234,137.05,137.03,0.04674789]
[1740702604768,7.3033,137.05,137.0,7.3056]
[1740702605076,7.35541803,137.05,137.03,0.04674789]
[1740702605475,7.3035,137.04,137.03,0.04674789]
[1740702606473,33.84979567,137.1,137.03,0.04674789]
[1740702606474,7.3026,137.06,137.03,0.04674789]
[1740702606677,10.07069567,137.1,137.03,0.04674789]
[1740702607080,7.3023,137.07,137.03,7.35074789]
[1740702607271,7.3023,137.07,137.03,7.304]
[1740702607674,0.05156481,137.06,137.04,0.05102293]
[1740702607881,57.3093,137.12,136.94,18.66337453]
[1740702608074,0.05290023,137.06,137.04,0.05067541]
[1740702608274,7.303,137.05,137.04,0.05067541]
[1740702609179,0.045933,137.06,137.04,0.05067541]
[1740702609379,7.348433,137.06,137.04,0.05067541]
[1740702609575,0.045933,137.06,137.04,0.05067541]
[1740702610381,7.303,137.05,137.04,0.05067541]
[1740702610975,0.045933,137.06,137.04,0.05067541]
[1740702614379,0.045933,137.06,137.04,7.35397541]
[1740702615681,0.045933,137.06,137.04,0.05067541]
[1740702616182,0.045933,137.06,137.04,7.35387541]
[1740702617279,1.9595,137.15,137.04,0.05067541]
[1740702617487,13.4395,137.15,136.99,11.48]
[1740702618283,0.05157053,137.08,137.07,7.3015]
[1740702618484,62.66788878,137.16,136.99,11.48]
[1740702618687,62.66788878,137.16,136.99,204.48]
[1740702619176,40.78788878,137.16,136.99,204.48]
[1740702619380,0.50510609,137.16,137.0,15.95289392]
[1740702619685,0.05385495,137.09,137.08,7.3014]
[1740702619984,0.50510609,137.16,137.01,193.0]
[1740702620182,0.50510609,137.16,137.02,1.34138613]
[1740702620383,0.50510609,137.16,137.1,7.3003]
[1740702620384,7.2978,137.15,137.1,7.3003]
[1740702620986,0.05225705,137.14,137.11,0.04705984]
[1740702621481,7.35065705,137.14,137.11,0.04705984]
[1740702621688,0.05225705,137.14,137.11,0.04705984]
[1740702622087,7.2992,137.12,137.11,0.04705984]
[1740702622785,7.2988,137.13,137.11,0.04705984]
[1740702623688,7.2992,137.12,137.11,0.04705984]
[1740702625191,7.2992,137.12,137.11,5.984e-05]
[1740702625591,51.0592,137.12,137.11,5.984e-05]
[1740702627288,72.9592,137.12,137.11,5.984e-05]
[1740702628293,7.3054,137.01,136.98,2.0166]
[1740702628988,7.3046,137.02,136.98,2.0166]
[1740702629194,114.12361908,137.12,136.98,2.0166]
[1740702629390,0.05606049,137.01,136.99,0.05494109]
[1740702629591,7.3035,137.04,136.98,2.0166]
[1740702629791,0.04612624,137.01,136.99,0.05347197]
[1740702630091,3.8939,137.1,136.98,2.0166]
[1740702630291,0.05546632,137.01,136.98,2.0166]
[1740702630491,2.0106,137.09,137.03,0.04745366]
[1740702630696,7.3038,137.04,136.98,9.3232]
[1740702630888,0.0502602,137.07,136.98,2.0166]
[1740702631092,2.0106,137.09,136.98,2.0166]
[1740702631290,0.04614312,137.04,137.01,0.05545554]
[1740702632987,7.34984312,137.04,137.01,0.05545554]
[1740702634999,0.04614312,137.04,137.01,0.05545554]
[1740702635196,7.3041,137.03,137.01,0.05545554]
[1740702636598,7.3046,137.02,137.01,0.05545554]
[1740702636801,0.04614312,137.04,137.01,0.05545554]
[1740702637702,7.3043,137.03,137.01,0.05545554]
[1740702637902,0.04614312,137.04,137.01,0.05545554]
[1740702639400,7.34984312,137.04,137.01,7.36045554]
[1740702639594,7.34984312,137.04,137.01,0.05545554]
[1740702641704,0.04614312,137.04,137.01,0.05545554]
[1740702642204,7.304,137.03,137.01,0.05545554]
[1740702642401,0.04614312,137.04,137.01,0.05545554]
[1740702643905,7.34984312,137.04,137.01,0.05545554]
[1740702645007,7.3041,137.03,137.01,0.05545554]
[1740702646206,0.04614312,137.04,137.01,0.05545554]
[1740702646406,0.04614312,137.04,136.88,40.93088586]
[1740702646706,11.48,137.06,136.9,5.8736]
[1740702647109,1.3171624,137.05,136.9,5.8736]
[1740702647506,7.3073,136.97,136.92,7.3096]
[1740702647710,7.3073,136.97,136.96,0.04836503]
[1740702647907,7.3073,136.97,136.92,7.3096]
[1740702648200,0.05228075,136.98,136.95,0.046841]
[1740702648406,7.3078,136.96,136.91,7.3102]
[1740702648603,0.05588021,136.98,136.95,0.04811436]
[1740702648907,0.05588021,136.98,136.88,40.56697009]
[1740702648908,7.3092,136.94,136.89,7.3114]
[1740702649304,7.3092,136.94,136.9,0.04860759]
[1740702649607,0.05034529,136.93,136.9,0.04860759]
[1740702649808,7.35984529,136.93,136.9,0.04860759]
[1740702650504,0.05034529,136.93,136.9,0.04860759]
[1740702652008,11.56,136.92,136.88,40.56697009]
[1740702652210,3.765,136.91,136.88,40.56697009]
[1740702652411,3.765,136.91,136.79,1.8968]
[1740702652610,3.765,136.91,136.81,9.3245]
[1740702652811,3.765,136.91,136.81,2.0089]
[1740702653312,0.04861028,136.87,136.85,0.0514241]
[1740702657110,1.896,136.99,136.85,21.9714241]
[1740702657315,7.3094,136.93,136.87,7.3124]
[1740702657516,17.6052,136.99,136.8,194.8506]
[1740702658015,17.6052,136.99,136.89,7.3113]
[1740702658218,17.6052,136.99,136.8,194.8506]
[1740702658414,0.05366145,136.95,136.93,0.04729623]
[1740702658611,0.05366145,136.95,136.8,194.8506]
[1740702658816,1.3165283,136.98,136.8,194.8506]
[1740702659011,17.6052,136.99,136.8,194.8506]
[1740702659612,7.3102,136.92,136.8,194.8506]
[1740702659819,0.05569155,136.91,136.88,0.05521115]
[1740702660017,0.05569155,136.91,136.8,194.8506]
[1740702660216,7.3095,136.93,136.88,0.05067424]
[1740702660520,0.04763661,136.92,136.8,194.8506]
[1740702660713,17.6052,136.99,136.89,0.05114629]
[1740702660918,7.3078,136.96,136.81,1.34351537]
[1740702661117,7.3078,136.96,136.93,0.04844011]
[1740702661317,5.8052,136.99,136.81,194.34351537]
[1740702661513,7.3074,136.97,136.82,1.34351537]
[1740702661717,7.3074,136.97,136.83,1.34351537]
[1740702662019,7.3074,136.97,136.84,2.0407]
[1740702662221,0.04854074,136.91,136.89,0.04757775]
[1740702662623,5.8052,136.99,136.84,2.0407]
[1740702662818,0.04589579,136.91,136.89,0.04918038]
[1740702663221,5.8052,136.99,136.84,2.0407]
[1740702663518,0.05200282,136.91,136.89,0.0532596]
[1740702663714,7.3097,136.93,136.89,0.0532596]
[1740702663919,0.05443432,136.91,136.9,0.04798223]
[1740702664119,0.05443432,136.91,136.84,2.0407]
[1740702664421,0.05443432,136.91,136.9,7.311]
[1740702664622,7.3077,136.97,136.84,2.0407]
[1740702664818,7.3077,136.97,136.91,7.3099]
[1740702665117,7.3069,136.98,136.86,11.82]
[1740702665318,7.3069,136.98,136.92,7.3095]
[1740702665522,1.896,136.99,136.92,7.3095]
[1740702665823,0.05196252,136.96,136.94,0.04626658]
[1740702666322,7.3083,136.95,136.94,0.04626658]
[1740702666822,0.05196252,136.96,136.87,1.9903]
[1740702667025,1.9122,136.95,136.87,1.9903]
[1740702668022,0.05106271,136.92,136.9,0.05371078]
[1740702668225,7.3106,136.91,136.9,0.05371078]
[1740702668520,0.05106271,136.92,136.9,0.05371078]
[1740702669424,7.3104,136.91,136.9,0.05371078]
[1740702671120,0.05106271,136.92,136.9,0.05371078]
[1740702671425,1.9018,136.98,136.9,0.05371078]
[1740702671829,268.98057954,137.01,136.9,0.05371078]
[1740702672022,70.40057954,137.01,136.88,11.84]
[1740702672222,7.3059,137.0,136.94,7.3087]
[1740702672418,0.05306705,136.96,136.93,0.05608499]
[1740702672729,0.05306705,136.96,136.94,7.3084]
[1740702672933,0.05306705,136.96,136.93,0.05608499]
[1740702675624,0.05306705,136.96,136.95,7.3083]
[1740702676629,0.05306705,136.96,136.93,0.05608499]
[1740702677925,11.84,137.06,136.93,0.05608499]
[1740702678229,15.7339,137.06,136.91,1.9695]
[1740702678728,15.7339,137.06,136.96,7.3076]
[1740702679125,0.05034874,137.02,136.94,7.3087]
[1740702679328,0.05034874,137.02,137.0,0.05206229]
[1740702679519,15.7339,137.06,136.91,1.9695]
[1740702679720,7.3061,137.0,136.95,7.308]
[1740702679922,7.3061,137.0,136.97,0.04718052]
[1740702680125,0.04698749,136.99,136.97,0.04718052]
[1740702680330,7.35318749,136.99,136.97,0.04718052]
[1740702681928,0.04698749,136.99,136.97,0.04718052]
[1740702682134,7.3067,136.98,136.97,0.04718052]
[1740702682728,7.35338749,136.99,136.97,0.04718052]
[1740702685329,7.3067,136.98,136.97,0.04718052]
[1740702686626,0.04698749,136.99,136.97,0.04718052]
[1740702688738,0.04698749,136.99,136.97,7.35408052]
[1740702689039,0.04698749,136.99,136.97,0.04718052]
[1740702691140,0.04698749,136.99,136.98,7.3067]
[1740702694046,0.04698749,136.99,136.97,7.35418052]
[1740702694646,0.04698749,136.99,136.97,0.04718052]
[1740702695241,0.04698749,136.99,136.97,7.35398052]
[1740702695535,0.04698749,136.99,136.97,0.04718052]
[1740702696036,0.04698749,136.99,136.98,7.3067]
[1740702698944,0.04698749,136.99,136.97,7.35418052]
[1740702700250,0.04698749,136.99,136.97,0.04718052]
[1740702702143,7.35348749,136.99,136.97,0.04718052]
[1740702703450,0.04698749,136.99,136.97,0.04718052]
[1740702704547,0.04698749,136.99,136.98,7.3067]
[1740702707248,8.749e-05,136.99,136.98,29.2067]
[1740702707448,3.8939,137.06,136.97,0.04718052]
[1740702707659,3.8939,137.06,136.95,11.7]
[1740702707858,3.8939,137.06,136.97,7.3071]
[1740702708061,7.3061,137.0,136.93,18.59956694]
[1740702708260,7.3061,137.0,136.91,20.56906694]
[1740702708458,3.8939,137.06,136.91,1.9695]
[1740702708762,7.3048,137.02,136.91,1.9695]
[1740702708959,0.04814209,137.0,136.97,0.05287495]
[1740702709158,0.04814209,137.0,136.97,7.35987495]
[1740702709558,0.04814209,137.0,136.97,0.05287495]
[1740702710761,0.04814209,137.0,136.97,7.35987495]
[1740702711363,0.04814209,137.0,136.98,7.3067]
[1740702711763,0.04814209,137.0,136.97,0.05287495]
[1740702713167,0.04814209,137.0,136.91,7.3101]
[1740702713468,11.7,137.05,136.9,211.59956694]
[1740702713663,11.7,137.05,136.89,42.48757009]
[1740702714364,0.05498925,136.98,136.96,0.04835426]
[1740702714569,7.3058,137.0,136.9,20.60266694]
[1740702714770,0.0516747,136.98,136.96,0.05266097]
[1740702716865,0.0516747,136.98,136.97,7.3072]
[1740702717172,10.07069567,137.05,136.96,21.95266097]
[1740702717373,10.07069567,137.05,136.94,22.43836694]
[1740702717574,10.07069567,137.05,136.95,18.59956694]
[1740702717769,10.07069567,137.05,136.98,7.3067]
[1740702717770,7.3039,137.04,136.98,7.3067]
[1740702718165,7.3039,137.04,137.0,0.05118506]
[1740702718370,0.04653114,137.02,137.0,0.05118506]
[1740702723774,7.35153114,137.02,137.0,0.05118506]
[1740702723978,0.04653114,137.02,137.0,0.05118506]
[1740702724381,7.3051,137.01,137.0,0.05118506]
[1740702724781,0.04653114,137.02,136.95,18.59956694]
[1740702725077,7.307,136.98,136.94,25.90836694]
[1740702725579,7.3065,136.99,136.94,25.90836694]
[1740702725778,1.9685,137.01,136.94,7.3088]
[1740702725982,0.0467851,136.98,136.95,0.05324301]
[1740702726880,0.0467851,136.98,136.95,7.36154301]
[1740702729583,0.0467851,136.98,136.95,0.05324301]
[1740702729777,5.7861,137.06,136.95,0.05324301]
[1740702729976,13.0888,137.06,137.0,7.3053]
[1740702730277,13.0888,137.06,136.97,11.64]
[1740702730673,23.15949567,137.06,136.97,11.64]
[1740702731072,23.15949567,137.06,137.0,0.05418396]
[1740702731073,0.05265914,137.03,137.0,0.05418396]
[1740702732483,0.05265914,137.03,137.0,7.35958396]
[1740702733583,0.05265914,137.03,137.0,0.05418396]
[1740702734483,0.05265914,137.03,137.01,7.3047]
[1740702734886,0.05265914,137.03,137.0,0.05418396]
[1740702735782,0.05265914,137.03,137.02,7.3046]
[1740702735983,5.9532,137.1,137.0,0.05418396]
[1740702736183,5.9532,137.1,136.99,18.59956694]
[1740702736982,0.70753723,137.11,137.0,18.59956694]
[1740702737180,0.0467486,137.06,137.03,0.05198947]
[1740702738384,0.0467486,137.06,137.05,7.303]
[1740702739089,0.0467486,137.06,137.04,7.3035]
[1740702740884,0.0467486,137.06,137.03,0.05198947]
[1740702741787,0.0467486,137.06,137.04,7.3035]
[1740702742489,0.0467486,137.06,137.05,7.303]
[1740702742889,7.3001,137.11,137.06,7.3023]
[1740702743489,7.3001,137.11,137.07,7.3019]
[1740702743888,0.05127785,137.1,137.08,0.04885785]
[1740702744189,0.05127785,137.1,137.05,3.986]
[1740702744389,0.05127785,137.1,137.09,7.3008]
[1740702744982,44.08328269,137.18,137.08,0.05017686]
[1740702744983,40.28278269,137.18,137.08,0.05017686]
[1740702745188,40.28278269,137.18,137.08,193.0]
[1740702745591,40.28278269,137.18,137.13,7.2983]
[1740702746188,0.04957314,137.17,137.14,0.04935444]
[1740702747588,0.04957314,137.17,137.15,6.48213002]
[1740702748188,0.04957314,137.17,137.16,6.48213002]
[1740702748591,0.04957314,137.17,137.16,13.77923002]
[1740702749491,40.28278269,137.22,137.16,6.48213002]
[1740702749791,40.28278269,137.22,137.17,11.58]
[1740702750288,40.28278269,137.22,137.2,7.2946]
[1740702750789,40.331541,137.22,137.2,7.34715915]
[1740702750993,40.331541,137.22,137.21,6.48213002]
[1740702751294,40.331541,137.22,137.21,13.77663002]
[1740702751689,0.04875831,137.22,137.21,13.77663002]
[1740702751889,0.04875831,137.22,137.21,6.48213002]
[1740702754095,7.34265831,137.22,137.21,6.48213002]
[1740702754596,0.04875831,137.22,137.21,6.48213002]
[1740702755094,0.04875831,137.22,137.2,0.05255915]
[1740702755887,0.04875831,137.22,137.21,6.43546367]
[1740702756996,0.04875831,137.22,137.21,13.72996367]
[1740702757797,0.04875831,137.22,137.21,6.43546367]
[1740702759696,0.04875831,137.22,137.21,0.27786367]
[1740702759894,0.04875831,137.22,137.2,0.05255915]
[1740702760095,7.2945,137.21,137.2,0.05255915]
[1740702760591,0.04875831,137.22,137.2,0.05255915]
[1740702761394,7.34295831,137.22,137.2,0.05255915]
[1740702761790,0.04875831,137.22,137.2,0.05255915]
[1740702762600,7.2945,137.21,137.2,0.05255915]
[1740702762802,0.04875831,137.22,137.13,3.8868]
[1740702763100,1.9964,137.28,137.14,7.298]
[1740702763101,7.2959,137.19,137.14,7.298]
[1740702763296,7.2959,137.19,137.13,3.8868]
[1740702763697,7.2952,137.2,137.15,7.2973]
[1740702764103,0.0505956,137.19,137.16,0.04798859]
[1740702765201,7.3463956,137.19,137.16,0.04798859]
[1740702765392,0.0505956,137.19,137.16,0.04798859]
[1740702765797,7.2961,137.18,137.16,0.04798859]
[1740702766199,7.3464956,137.19,137.16,0.04798859]
[1740702766404,0.0505956,137.19,137.16,0.04798859]
[1740702768702,7.2966,137.17,137.16,0.04798859]
[1740702770707,7.2978,137.15,137.11,7.2997]
[1740702770908,2.0321,137.19,137.06,1.9035]
[1740702772012,7.299,137.13,137.11,0.05457326]
[1740702772205,0.05216584,137.14,137.11,0.05457326]
[1740702772406,7.35066584,137.14,137.11,0.05457326]
[1740702772606,7.35066584,137.14,137.12,6.36787761]
[1740702773206,7.35066584,137.14,137.13,6.36787761]
[1740702776404,7.35066584,137.14,137.13,0.45607761]
[1740702780403,0.05216584,137.14,137.13,0.45607761]
[1740702782005,7.35036584,137.14,137.13,0.45607761]
[1740702782206,0.05216584,137.14,137.13,0.45607761]
[1740702784211,1.9668,137.2,137.13,7.75477761]
[1740702784406,1.9668,137.2,137.13,0.45607761]
[1740702784709,7.2965,137.18,137.13,7.2985]
[1740702784902,1.9668,137.2,137.13,7.2985]
[1740702785105,1.9668,137.2,137.12,1.9262]
[1740702785311,7.297,137.17,137.12,9.2251]
[1740702785501,0.04610664,137.17,137.15,0.05607127]
[1740702785806,7.2971,137.16,137.15,0.05607127]
[1740702786011,0.04610664,137.17,137.15,0.05607127]
[1740702787408,42.26328269,137.25,137.15,0.05607127]
[1740702787610,7.2941,137.22,137.17,7.2961]
[1740702787808,44.17088269,137.25,137.13,1.9036]
[1740702788206,7.2931,137.24,137.13,1.9036]
[1740702788702,0.04939547,137.2,137.17,0.05566562]
[1740702788911,44.17088269,137.25,137.17,0.05566562]
[1740702788912,42.19038269,137.25,137.17,0.05566562]
[1740702789111,40.28278269,137.25,137.23,7.2933]
[1740702789311,10.07069567,137.28,137.18,1.9208]
[1740702789513,7.2913,137.27,137.24,6.34512184]
[1740702790109,7.33795251,137.27,137.24,6.39205215]
[1740702790409,7.33795251,137.27,137.25,6.34512184]
[1740702790604,7.33795251,137.27,137.26,6.34512184]
[1740702793013,7.33795251,137.27,137.24,0.04693031]
[1740702793014,7.2923,137.25,137.24,0.04693031]
[1740702793214,2.0397,137.26,137.15,2.0403]
[1740702793411,7.2943,137.22,137.17,7.2963]
[1740702793610,2.0397,137.26,137.17,7.2963]
[1740702794317,2.0397,137.26,137.2,0.04938112]
[1740702794318,7.2942,137.22,137.2,0.04938112]
[1740702794817,7.2945,137.21,137.2,0.04938112]
[1740702795213,0.05449356,137.23,137.2,0.04938112]
[1740702795410,7.2943,137.22,137.2,0.04938112]
[1740702795615,0.05449356,137.23,137.2,0.04938112]
[1740702800928,7.2944,137.22,137.2,0.04938112]
[1740702802428,7.2945,137.21,137.2,0.04938112]
[1740702803629,7.2942,137.22,137.2,0.04938112]
[1740702803826,43.79449356,137.23,137.08,104.79940405]
[1740702804129,43.79449356,137.23,137.08,20.50246694]
[1740702804130,21.88,137.21,137.08,20.50246694]
[1740702804324,21.88,137.21,137.08,1.9029]
[1740702804626,1.31173463,137.2,137.06,1.9211]
[1740702804831,7.3006,137.1,137.06,1.9211]
[1740702805226,7.3006,137.1,137.07,0.05122835]
[1740702805426,0.0460125,137.09,137.07,0.05122835]
[1740702806321,7.3472125,137.09,137.07,0.05122835]
[1740702806721,0.0460125,137.09,137.07,0.05122835]
[1740702807333,7.3014,137.08,137.07,0.05122835]
[1740702812040,0.0460125,137.09,137.07,0.05122835]
[1740702813235,7.3014,137.08,137.07,0.05122835]
[1740702819938,0.0460125,137.09,137.07,0.05122835]
[1740702820743,7.3014,137.08,137.07,0.05122835]
[1740702821846,0.0460125,137.09,137.07,0.05122835]
[1740702823442,1.9944,137.14,137.07,0.05122835]